[Event "*** Titled Tuesday Blitz"]
[Site "Chess.com"]
[Date "2018.06.05"]
[Round "9"]
[White "attack2mateU"]
[Black "GMMatamoros"]
[Result "1/2-1/2"]
[WhiteElo "2683"]
[BlackElo "2533"]
[TimeControl "180+2"]
[EndTime "15:12:42 PDT"]
[Termination "Game drawn by agreement"]

1. e4 {[%clk 0:03:01.8]} 1... c5 {[%clk 0:02:59.8]} 2. Nf3 {[%clk 0:03:02.4]}
2... Nc6 {[%clk 0:03:00.9]} 3. d4 {[%clk 0:03:02.8]} 3... cxd4 {[%clk
0:03:01.5]} 4. Nxd4 {[%clk 0:03:04.7]} 4... e5 {[%clk 0:03:02.8]} 5. Nb5 {[%clk
0:03:04.5]} 5... d6 {[%clk 0:03:04]} 6. c4 {[%clk 0:02:59.8]} 6... Be7 {[%clk
0:03:04.6]} 7. N1c3 {[%clk 0:02:59]} 7... a6 {[%clk 0:03:04.6]} 8. Na3 {[%clk
0:02:59.8]} 8... f5 {[%clk 0:03:06.1]} 9. exf5 {[%clk 0:02:53.5]} 9... Bxf5
{[%clk 0:03:08]} 10. Nc2 {[%clk 0:02:51.4]} 10... Nf6 {[%clk 0:03:07.9]} 11. Ne3
{[%clk 0:02:52.5]} 11... Be6 {[%clk 0:03:08.1]} 12. Bd3 {[%clk 0:02:48.3]} 12...
O-O {[%clk 0:03:08.3]} 13. O-O {[%clk 0:02:49.9]} 13... Qd7 {[%clk 0:03:07.6]}
14. Ncd5 {[%clk 0:02:49]} 14... Bd8 {[%clk 0:03:05.4]} 15. b3 {[%clk 0:02:40.8]}
15... Bxd5 {[%clk 0:02:41]} 16. cxd5 {[%clk 0:02:40.4]} 16... Ne7 {[%clk
0:02:41.7]} 17. Ba3 {[%clk 0:01:46.3]} 17... Kh8 {[%clk 0:02:36.8]} 18. Rc1
{[%clk 0:01:40.1]} 18... b5 {[%clk 0:02:19.1]} 19. Bb1 {[%clk 0:01:15.1]} 19...
Bb6 {[%clk 0:02:16.1]} 20. Qd2 {[%clk 0:01:10.6]} 20... Bd4 {[%clk 0:01:55.3]}
21. Bb2 {[%clk 0:00:45.9]} 21... Bxb2 {[%clk 0:01:51]} 22. Qxb2 {[%clk
0:00:47.8]} 22... Nexd5 {[%clk 0:01:51.9]} 23. Nxd5 {[%clk 0:00:48.3]} 23...
Nxd5 {[%clk 0:01:53.7]} 24. Be4 {[%clk 0:00:47.9]} 24... Nf4 {[%clk 0:01:49.4]}
25. Bxa8 {[%clk 0:00:42.6]} 25... Rxa8 {[%clk 0:01:45.9]} 26. Qc2 {[%clk
0:00:29.9]} 26... h6 {[%clk 0:01:33.7]} 27. Qc6 {[%clk 0:00:28]} 27... Qd8
{[%clk 0:01:25]} 28. Kh1 {[%clk 0:00:27.2]} 28... d5 {[%clk 0:01:13.4]} 29. Rfd1
{[%clk 0:00:26.7]} 29... e4 {[%clk 0:01:09.9]} 30. g3 {[%clk 0:00:25.9]} 30...
Nd3 {[%clk 0:01:10.4]} 31. Rc2 {[%clk 0:00:20.9]} 31... Nb4 {[%clk 0:01:09.7]}
32. Qc5 {[%clk 0:00:10.4]} 32... Nxc2 {[%clk 0:01:10.1]} 33. Qxc2 {[%clk
0:00:10.5]} 33... Qd6 {[%clk 0:01:08.9]} 34. Qxe4 {[%clk 0:00:10.3]} 34... Rd8
{[%clk 0:00:57.7]} 35. Qd4 {[%clk 0:00:10.6]} 35... Qe6 {[%clk 0:00:55.2]} 36.
Kg2 {[%clk 0:00:11.1]} 36... Qc6 {[%clk 0:00:52.2]} 37. h4 {[%clk 0:00:11.7]}
37... Qe6 {[%clk 0:00:53]} 38. Rd2 {[%clk 0:00:12.5]} 38... Qc6 {[%clk 0:00:52]}
39. Re2 {[%clk 0:00:13.8]} 39... Qd6 {[%clk 0:00:50]} 40. Re5 {[%clk 0:00:14.5]}
40... Qc6 {[%clk 0:00:51.1]} 41. Re7 {[%clk 0:00:15]} 41... Qg6 {[%clk
0:00:49.5]} 42. Ra7 {[%clk 0:00:10.8]} 42... Rd6 {[%clk 0:00:45.5]} 43. h5
{[%clk 0:00:07.3]} 43... Qe4+ {[%clk 0:00:46.3]} 44. Qxe4 {[%clk 0:00:08.7]}
44... dxe4 {[%clk 0:00:48.2]} 45. g4 {[%clk 0:00:05.4]} 45... g6 {[%clk
0:00:32.1]} 46. hxg6 {[%clk 0:00:05.2]} 46... Rxg6 {[%clk 0:00:32.5]} 47. Kh3
{[%clk 0:00:05.8]} 47... Rf6 {[%clk 0:00:33.5]} 48. Kg3 {[%clk 0:00:06.7]} 48...
Kg8 {[%clk 0:00:31.7]} 49. a4 {[%clk 0:00:05.6]} 49... bxa4 {[%clk 0:00:32.1]}
50. bxa4 {[%clk 0:00:06.5]} 50... Rf3+ {[%clk 0:00:23.2]} 51. Kg2 {[%clk
0:00:06.1]} 51... Rf4 {[%clk 0:00:24.2]} 52. Kg3 {[%clk 0:00:06.5]} 52... Rf3+
{[%clk 0:00:25.3]} 53. Kg2 {[%clk 0:00:06.8]} 53... Rf4 {[%clk 0:00:25.9]} 54.
Rxa6 {[%clk 0:00:08.3]} 54... Rxg4+ {[%clk 0:00:26.9]} 55. Kh3 {[%clk 0:00:09]}
55... Rf4 {[%clk 0:00:25.7]} 56. Kg3 {[%clk 0:00:10.1]} 56... Rf3+ {[%clk
0:00:26.6]} 57. Kg2 {[%clk 0:00:11.2]} 57... Kg7 {[%clk 0:00:24.6]} 58. Re6
{[%clk 0:00:10.2]} 58... Rf4 {[%clk 0:00:25.6]} 59. a5 {[%clk 0:00:09.8]} 59...
Rf5 {[%clk 0:00:21.6]} 60. a6 {[%clk 0:00:09.9]} 60... Ra5 {[%clk 0:00:22.5]}
61. Kg3 {[%clk 0:00:10.7]} 61... h5 {[%clk 0:00:22.2]} 62. Kh4 {[%clk
0:00:08.3]} 62... Kf7 {[%clk 0:00:22.9]} 63. Rb6 {[%clk 0:00:08]} 63... Kg7
{[%clk 0:00:23.3]} 64. Kg3 {[%clk 0:00:08.6]} 64... Kf7 {[%clk 0:00:24.2]} 65.
Kf4 {[%clk 0:00:09.4]} 65... Kg7 {[%clk 0:00:25.5]} 66. Kxe4 {[%clk 0:00:10.3]}
66... h4 {[%clk 0:00:25.9]} 67. Kf3 {[%clk 0:00:10.6]} 67... Ra4 {[%clk
0:00:25.9]} 68. Kg2 {[%clk 0:00:10.6]} 68... Kf7 {[%clk 0:00:27.3]} 69. Kf3
{[%clk 0:00:09.8]} 69... Kg7 {[%clk 0:00:28.6]} 70. Ke3 {[%clk 0:00:08.8]} 70...
Kf7 {[%clk 0:00:29.2]} 71. Kf3 {[%clk 0:00:06.9]} 71... Kg7 {[%clk 0:00:29.5]}
72. Kg2 {[%clk 0:00:08.4]} 72... Kf7 {[%clk 0:00:30.8]} 73. Kh3 {[%clk
0:00:09.8]} 73... Kg7 {[%clk 0:00:32.1]} 74. Rd6 {[%clk 0:00:10.7]} 74... Kf7
{[%clk 0:00:33.3]} 75. Kg2 {[%clk 0:00:08.9]} 75... Kg7 {[%clk 0:00:34.2]} 76.
Kf3 {[%clk 0:00:09.7]} 76... Kf7 {[%clk 0:00:35.5]} 77. Ke3 {[%clk 0:00:11.2]}
77... Kg7 {[%clk 0:00:36.1]} 78. f4 {[%clk 0:00:12.7]} 78... h3 {[%clk
0:00:35.1]} 79. Kf3 {[%clk 0:00:08.4]} 79... h2 {[%clk 0:00:36.3]} 80. Kg2
{[%clk 0:00:09.1]} 80... Rxf4 {[%clk 0:00:36.6]} 81. a7 {[%clk 0:00:07.6]} 81...
Ra4 {[%clk 0:00:37.7]} 82. Rd7+ {[%clk 0:00:08.5]} 82... Kf6 {[%clk 0:00:38.9]}
83. Kxh2 {[%clk 0:00:09.7]} 83... Ke6 {[%clk 0:00:40.2]} 84. Rb7 {[%clk
0:00:09.6]} 84... Kd6 {[%clk 0:00:40.5]} 85. Kg3 {[%clk 0:00:10]} 1/2-1/2

[Event "*** Titled Tuesday Blitz"]
[Site "Chess.com"]
[Date "2018.06.05"]
[Round "9"]
[White "Godzillator"]
[Black "blitzcopter"]
[Result "1/2-1/2"]
[WhiteElo "2260"]
[BlackElo "2102"]
[TimeControl "180+2"]
[EndTime "15:16:07 PDT"]
[Termination "Game drawn by agreement"]

1. d4 {[%clk 0:03:01.9]} 1... Nf6 {[%clk 0:03:00]} 2. c4 {[%clk 0:03:02.9]} 2...
e6 {[%clk 0:03:00.5]} 3. Nc3 {[%clk 0:03:04.1]} 3... Bb4 {[%clk 0:03:00.7]} 4.
Qc2 {[%clk 0:03:05.3]} 4... O-O {[%clk 0:02:57.3]} 5. a3 {[%clk 0:03:06.5]} 5...
Bxc3+ {[%clk 0:02:57.6]} 6. Qxc3 {[%clk 0:03:08.1]} 6... d5 {[%clk 0:02:59.4]}
7. Bg5 {[%clk 0:03:08.6]} 7... dxc4 {[%clk 0:02:59.2]} 8. Qxc4 {[%clk
0:03:09.8]} 8... b6 {[%clk 0:03:00.6]} 9. Rd1 {[%clk 0:03:10.5]} 9... Ba6 {[%clk
0:03:00.4]} 10. Qa4 {[%clk 0:03:11.4]} 10... Qd7 {[%clk 0:02:44.1]} 11. Qc2
{[%clk 0:03:11.6]} 11... Nd5 {[%clk 0:02:28.2]} 12. Nf3 {[%clk 0:03:04.3]} 12...
h6 {[%clk 0:02:19.4]} 13. Bh4 {[%clk 0:03:01.6]} 13... Rc8 {[%clk 0:02:14.7]}
14. Ne5 {[%clk 0:02:57.2]} 14... Qe8 {[%clk 0:02:14.2]} 15. e4 {[%clk
0:02:54.5]} 15... Bxf1 {[%clk 0:02:10.5]} 16. Rxf1 {[%clk 0:02:53.6]} 16... Ne7
{[%clk 0:02:05.2]} 17. Bxe7 {[%clk 0:02:48.9]} 17... Qxe7 {[%clk 0:02:07.1]} 18.
Nc6 {[%clk 0:02:49.9]} 18... Qe8 {[%clk 0:01:55.1]} 19. Rc1 {[%clk 0:02:47.4]}
19... Nxc6 {[%clk 0:01:35.1]} 20. Qxc6 {[%clk 0:02:48.1]} 20... Qxc6 {[%clk
0:01:37]} 21. Rxc6 {[%clk 0:02:48.5]} 21... Rd8 {[%clk 0:01:38]} 22. Rxc7 {[%clk
0:02:31.4]} 22... Rxd4 {[%clk 0:01:36.1]} 23. f3 {[%clk 0:02:32.2]} 23... Rad8
{[%clk 0:01:31.8]} 24. Rf2 {[%clk 0:02:04.6]} 24... Rd1+ {[%clk 0:01:31.4]} 25.
Ke2 {[%clk 0:02:05.2]} 25... R8d2+ {[%clk 0:01:32.3]} 26. Ke3 {[%clk 0:02:06.1]}
26... Rxf2 {[%clk 0:01:30.7]} 27. Kxf2 {[%clk 0:02:07.1]} 27... Rd2+ {[%clk
0:01:23.6]} 28. Kg3 {[%clk 0:02:08]} 28... a5 {[%clk 0:00:53.2]} 29. b4 {[%clk
0:02:05.2]} 29... axb4 {[%clk 0:00:52]} 30. axb4 {[%clk 0:02:06.2]} 30... Rd4
{[%clk 0:00:53.4]} 31. e5 {[%clk 0:01:47.1]} 31... g5 {[%clk 0:00:45.7]} 32. b5
{[%clk 0:01:37.4]} 32... Rb4 {[%clk 0:00:30.7]} 33. Rb7 {[%clk 0:01:33.9]} 33...
Rxb5 {[%clk 0:00:30.1]} 34. f4 {[%clk 0:01:35]} 34... Kg7 {[%clk 0:00:24.8]} 35.
h4 {[%clk 0:01:27.9]} 35... gxf4+ {[%clk 0:00:22.8]} 36. Kxf4 {[%clk 0:01:29]}
36... Rb4+ {[%clk 0:00:23.9]} 37. Kg3 {[%clk 0:01:28.5]} 37... Re4 {[%clk
0:00:23.1]} 38. Rxb6 {[%clk 0:01:27.5]} 38... Rxe5 {[%clk 0:00:23.9]} 39. Kf4
{[%clk 0:01:27.6]} 39... Rf5+ {[%clk 0:00:23.3]} 40. Ke4 {[%clk 0:01:24.5]}
40... h5 {[%clk 0:00:24.6]} 41. g3 {[%clk 0:01:24]} 41... Kf6 {[%clk 0:00:23.9]}
42. Rb8 {[%clk 0:01:24.3]} 42... Re5+ {[%clk 0:00:23.2]} 43. Kf4 {[%clk
0:01:24.6]} 43... Re1 {[%clk 0:00:19.2]} 44. Rh8 {[%clk 0:01:23.4]} 44... Rf1+
{[%clk 0:00:19.6]} 45. Ke4 {[%clk 0:01:23.5]} 45... Rf5 {[%clk 0:00:21.3]} 46.
Rg8 {[%clk 0:01:19.4]} 46... Re5+ {[%clk 0:00:20.8]} 47. Kf4 {[%clk 0:01:20]}
47... Rf5+ {[%clk 0:00:20.4]} 48. Ke4 {[%clk 0:01:20.9]} 48... e5 {[%clk
0:00:17.1]} 49. Rf8 {[%clk 0:01:17.8]} 49... Kg6 {[%clk 0:00:15.4]} 50. Rg8+
{[%clk 0:01:16.3]} 50... Kf6 {[%clk 0:00:15.5]} 51. Rf8 {[%clk 0:01:16.6]} 51...
Rf1 {[%clk 0:00:06.4]} 52. Rh8 {[%clk 0:01:15.7]} 52... Re1+ {[%clk 0:00:06.6]}
53. Kf3 {[%clk 0:01:16.2]} 53... Kg6 {[%clk 0:00:07.2]} 54. Rg8+ {[%clk
0:01:16.4]} 54... Kf6 {[%clk 0:00:08.3]} 55. Rh8 {[%clk 0:01:17.3]} 55... Kg6
{[%clk 0:00:09]} 56. Rg8+ {[%clk 0:01:17.2]} 56... Kh7 {[%clk 0:00:10.2]} 57.
Rg5 {[%clk 0:01:16.9]} 57... Kh6 {[%clk 0:00:09.7]} 58. Rg8 {[%clk 0:01:17.1]}
58... f6 {[%clk 0:00:07.5]} 59. Kf2 {[%clk 0:01:16.7]} 59... Re4 {[%clk
0:00:07.3]} 60. Kf3 {[%clk 0:01:17.7]} 60... Re1 {[%clk 0:00:07.4]} 61. Kf2
{[%clk 0:01:18.7]} 61... Rd1 {[%clk 0:00:08.1]} 62. Kf3 {[%clk 0:01:19.3]} 62...
Rd4 {[%clk 0:00:09.2]} 63. Kf2 {[%clk 0:01:18.7]} 63... Kh7 {[%clk 0:00:10]} 64.
Rf8 {[%clk 0:01:14.3]} 64... Kg6 {[%clk 0:00:11]} 65. Rg8+ {[%clk 0:01:14.1]}
65... Kf5 {[%clk 0:00:11.9]} 66. Rh8 {[%clk 0:01:15.4]} 66... Kg4 {[%clk
0:00:12.5]} 67. Rg8+ {[%clk 0:01:16.6]} 67... Kf5 {[%clk 0:00:13.7]} 68. Rh8
{[%clk 0:01:17.5]} 68... Kg4 {[%clk 0:00:15.1]} 69. Rg8+ {[%clk 0:01:18.5]}
69... Kh3 {[%clk 0:00:13.1]} 70. Rg6 {[%clk 0:01:18.4]} 70... Rd2+ {[%clk
0:00:11]} 71. Kf3 {[%clk 0:01:18.8]} 71... Rd3+ {[%clk 0:00:11.3]} 72. Kf2
{[%clk 0:01:19.7]} 72... Rd2+ {[%clk 0:00:10.7]} 73. Kf3 {[%clk 0:01:20.7]}
73... Rg2 {[%clk 0:00:07.3]} 74. Ke4 {[%clk 0:00:49.3]} 74... Rxg3 {[%clk
0:00:06.1]} 75. Rxf6 {[%clk 0:00:50.5]} 75... Rg1 {[%clk 0:00:04.3]} 76. Kxe5
{[%clk 0:00:50.9]} 76... Kxh4 {[%clk 0:00:05.1]} 77. Rf2 {[%clk 0:00:48.6]}
77... Kh3 {[%clk 0:00:06.2]} 78. Kf4 {[%clk 0:00:48.7]} 78... Rg8 {[%clk
0:00:06.9]} 79. Ke3 {[%clk 0:00:48.5]} 79... h4 {[%clk 0:00:07.7]} 80. Rf7
{[%clk 0:00:48.8]} 80... Rg3+ {[%clk 0:00:08.5]} 81. Kf2 {[%clk 0:00:49.8]}
81... Rg2+ {[%clk 0:00:09.6]} 82. Kf1 {[%clk 0:00:50.9]} 82... Rg4 {[%clk
0:00:10.6]} 83. Rf3+ {[%clk 0:00:47.4]} 83... Kh2 {[%clk 0:00:11.2]} 84. Rf5
{[%clk 0:00:46.8]} 84... h3 {[%clk 0:00:12]} 85. Rf3 {[%clk 0:00:46.2]} 85...
Rg1+ {[%clk 0:00:11.8]} 86. Kf2 {[%clk 0:00:46.9]} 86... Rg2+ {[%clk 0:00:13.7]}
87. Kf1 {[%clk 0:00:48.2]} 87... Rg4 {[%clk 0:00:11.9]} 88. Kf2 {[%clk
0:00:47.1]} 88... Rg2+ {[%clk 0:00:11]} 89. Kf1 {[%clk 0:00:48.1]} 89... Rg1+
{[%clk 0:00:11]} 90. Kf2 {[%clk 0:00:49.2]} 90... Ra1 {[%clk 0:00:10.2]} 91. Re3
{[%clk 0:00:42.1]} 91... Ra2+ {[%clk 0:00:09.9]} 92. Kf1 {[%clk 0:00:43.2]}
92... Ra8 {[%clk 0:00:09.9]} 93. Rf3 {[%clk 0:00:43.7]} 93... Re8 {[%clk
0:00:10.7]} 94. Kf2 {[%clk 0:00:42.6]} 94... Rd8 {[%clk 0:00:10.9]} 95. Kf1
{[%clk 0:00:42.9]} 95... Rd1+ {[%clk 0:00:11]} 96. Ke2 {[%clk 0:00:43.6]} 96...
Ra1 {[%clk 0:00:06.1]} 97. Kf2 {[%clk 0:00:42.2]} 97... Rb1 {[%clk 0:00:07.1]}
98. Re3 {[%clk 0:00:41.6]} 98... Rb2+ {[%clk 0:00:08]} 99. Kf1 {[%clk
0:00:42.5]} 99... Rb1+ {[%clk 0:00:08.4]} 100. Kf2 {[%clk 0:00:43.6]} 100... Rb8
{[%clk 0:00:06.3]} 101. Rf3 {[%clk 0:00:43.7]} 101... Rb2+ {[%clk 0:00:06.9]}
102. Kf1 {[%clk 0:00:44.6]} 102... Rg2 {[%clk 0:00:07.8]} 103. Re3 {[%clk
0:00:39.3]} 103... Rg3 {[%clk 0:00:07.8]} 104. Re2+ {[%clk 0:00:37.5]} 104...
Kh1 {[%clk 0:00:07.1]} 105. Re4 {[%clk 0:00:37.8]} 105... h2 {[%clk 0:00:06.3]}
106. Rf4 {[%clk 0:00:35.7]} 106... Rg1+ {[%clk 0:00:06.8]} 107. Kf2 {[%clk
0:00:36.2]} 107... Ra1 {[%clk 0:00:06.4]} 108. Rf8 {[%clk 0:00:35.9]} 108...
Ra2+ {[%clk 0:00:05.7]} 109. Kf1 {[%clk 0:00:37]} 109... Ra4 {[%clk 0:00:05.2]}
110. Kf2 {[%clk 0:00:37.3]} 110... Ra2+ {[%clk 0:00:05.3]} 111. Kf1 {[%clk
0:00:38.5]} 111... Rb2 {[%clk 0:00:06.6]} 112. Rf7 {[%clk 0:00:38.2]} 112...
Rb1+ {[%clk 0:00:07.2]} 113. Kf2 {[%clk 0:00:38.6]} 113... Rb2+ {[%clk
0:00:07.2]} 1/2-1/2

[Event "*** Titled Tuesday Blitz"]
[Site "Chess.com"]
[Date "2018.06.05"]
[Round "10"]
[White "Zaven_ChessMood"]
[Black "petrpalachev"]
[Result "1/2-1/2"]
[WhiteElo "2883"]
[BlackElo "2742"]
[TimeControl "180+2"]
[EndTime "15:17:44 PDT"]
[Termination "Game drawn by agreement"]

1. e4 {[%clk 0:02:59.4]} 1... c5 {[%clk 0:03:00.9]} 2. Nf3 {[%clk 0:03:00]} 2...
Nc6 {[%clk 0:03:02.5]} 3. Bb5 {[%clk 0:03:00.3]} 3... g6 {[%clk 0:03:03.9]} 4.
Bxc6 {[%clk 0:03:01]} 4... bxc6 {[%clk 0:03:05.8]} 5. O-O {[%clk 0:02:59.9]}
5... Bg7 {[%clk 0:03:07]} 6. Re1 {[%clk 0:03:01]} 6... Nh6 {[%clk 0:03:06.7]} 7.
c3 {[%clk 0:03:01.3]} 7... O-O {[%clk 0:03:07.4]} 8. d4 {[%clk 0:03:01.9]} 8...
cxd4 {[%clk 0:03:09.3]} 9. cxd4 {[%clk 0:03:03.2]} 9... d5 {[%clk 0:03:10.9]}
10. e5 {[%clk 0:03:00.2]} 10... Nf5 {[%clk 0:03:11.6]} 11. Nc3 {[%clk
0:02:53.8]} 11... f6 {[%clk 0:03:07.7]} 12. b3 {[%clk 0:02:46.7]} 1/2-1/2

[Event "*** Titled Tuesday Blitz"]
[Site "Chess.com"]
[Date "2018.06.05"]
[Round "10"]
[White "ruvat"]
[Black "Triumphmate"]
[Result "1-0"]
[WhiteElo "2259"]
[BlackElo "2119"]
[TimeControl "180+2"]
[EndTime "15:18:51 PDT"]
[Termination "ruvat won by resignation"]

1. d4 {[%clk 0:03:01.9]} 1... Nf6 {[%clk 0:02:58.2]} 2. c4 {[%clk 0:03:01.2]}
2... e6 {[%clk 0:02:59.4]} 3. g3 {[%clk 0:03:01.6]} 3... Be7 {[%clk 0:03:00.1]}
4. Nf3 {[%clk 0:03:02.2]} 4... O-O {[%clk 0:03:02]} 5. Bg2 {[%clk 0:03:03.3]}
5... d5 {[%clk 0:03:03.9]} 6. O-O {[%clk 0:03:02.5]} 6... dxc4 {[%clk
0:03:05.3]} 7. Ne5 {[%clk 0:03:02.8]} 7... c5 {[%clk 0:03:06.7]} 8. dxc5 {[%clk
0:03:04]} 8... Bxc5 {[%clk 0:03:08.3]} 9. Nc3 {[%clk 0:03:02.4]} 9... Qc7 {[%clk
0:03:08.8]} 10. Nxc4 {[%clk 0:03:02.4]} 10... Bxf2+ {[%clk 0:03:09.3]} 11. Rxf2
{[%clk 0:03:03.1]} 11... Qxc4 {[%clk 0:03:10.7]} 12. Rxf6 {[%clk 0:02:59.6]}
12... gxf6 {[%clk 0:03:10.8]} 13. Bh6 {[%clk 0:02:52.5]} 13... Re8 {[%clk
0:02:52.4]} 14. Ne4 {[%clk 0:02:39.2]} 14... Nd7 {[%clk 0:02:42.2]} 15. e3
{[%clk 0:02:35.1]} 15... e5 {[%clk 0:02:26.6]} 16. Qg4+ {[%clk 0:02:29.6]} 1-0

[Event "*** Titled Tuesday Blitz"]
[Site "Chess.com"]
[Date "2018.06.05"]
[Round "10"]
[White "Slovak_fighter2000"]
[Black "1e41-0"]
[Result "0-1"]
[WhiteElo "2386"]
[BlackElo "2423"]
[TimeControl "180+2"]
[EndTime "15:20:04 PDT"]
[Termination "1e41-0 won by resignation"]

1. e4 {[%clk 0:03:01.9]} 1... c5 {[%clk 0:02:59.2]} 2. Nf3 {[%clk 0:03:02.1]}
2... e6 {[%clk 0:03:00.6]} 3. b3 {[%clk 0:03:02.1]} 3... d5 {[%clk 0:03:01]} 4.
exd5 {[%clk 0:03:02.7]} 4... exd5 {[%clk 0:03:02.2]} 5. Bb2 {[%clk 0:03:03.4]}
5... Nc6 {[%clk 0:03:02.2]} 6. Bb5 {[%clk 0:03:04.2]} 6... Nf6 {[%clk
0:03:02.7]} 7. O-O {[%clk 0:03:04.5]} 7... Be7 {[%clk 0:03:03.7]} 8. Bxc6+
{[%clk 0:03:04.8]} 8... bxc6 {[%clk 0:03:05.6]} 9. Nc3 {[%clk 0:03:04.2]} 9...
O-O {[%clk 0:03:06.2]} 10. Na4 {[%clk 0:03:05.2]} 10... Bg4 {[%clk 0:03:02.3]}
11. h3 {[%clk 0:03:02.7]} 11... Bh5 {[%clk 0:03:03]} 12. g4 {[%clk 0:03:01.5]}
12... Bg6 {[%clk 0:03:02]} 13. Ne5 {[%clk 0:03:02.5]} 13... Bd6 {[%clk
0:03:02.9]} 14. Nxg6 {[%clk 0:02:56.2]} 14... fxg6 {[%clk 0:03:00.6]} 15. Qe2
{[%clk 0:02:47.4]} 15... Ne4 {[%clk 0:02:57.9]} 16. d3 {[%clk 0:02:44.8]} 16...
Ng5 {[%clk 0:02:58.6]} 17. Kg2 {[%clk 0:02:42]} 17... Qd7 {[%clk 0:02:57.7]} 18.
f3 {[%clk 0:02:28.8]} 18... Rae8 {[%clk 0:02:57.8]} 19. Qd2 {[%clk 0:02:22.5]}
19... Ne6 {[%clk 0:02:55]} 20. h4 {[%clk 0:01:59.9]} 20... Nf4+ {[%clk
0:02:54.4]} 21. Kh1 {[%clk 0:02:00.8]} 21... Re2 {[%clk 0:02:52.6]} 22. Qc3
{[%clk 0:02:00.6]} 22... Qe7 {[%clk 0:02:50.2]} 23. g5 {[%clk 0:01:51]} 23...
Qd7 {[%clk 0:02:20.1]} 0-1

[Event "*** Titled Tuesday Blitz"]
[Site "Chess.com"]
[Date "2018.06.05"]
[Round "10"]
[White "Jahonas"]
[Black "Kubas1010"]
[Result "1-0"]
[WhiteElo "2269"]
[BlackElo "2359"]
[TimeControl "180+2"]
[EndTime "15:20:12 PDT"]
[Termination "Jahonas won by resignation"]

1. d4 {[%clk 0:03:01.9]} 1... d5 {[%clk 0:02:59.4]} 2. c4 {[%clk 0:03:02.8]}
2... e6 {[%clk 0:03:00.4]} 3. Nf3 {[%clk 0:03:03.9]} 3... Nf6 {[%clk 0:03:01.4]}
4. g3 {[%clk 0:03:05.2]} 4... Be7 {[%clk 0:03:02.4]} 5. Bg2 {[%clk 0:03:06.4]}
5... O-O {[%clk 0:03:03.9]} 6. Qc2 {[%clk 0:03:07.7]} 6... c5 {[%clk 0:03:03.6]}
7. dxc5 {[%clk 0:03:07.6]} 7... d4 {[%clk 0:03:03.8]} 8. b4 {[%clk 0:03:07.4]}
8... a5 {[%clk 0:03:03.1]} 9. b5 {[%clk 0:03:06.3]} 9... Bxc5 {[%clk 0:03:01.8]}
10. O-O {[%clk 0:03:06.9]} 10... Qc7 {[%clk 0:02:57.6]} 11. a4 {[%clk
0:03:07.1]} 11... e5 {[%clk 0:02:58.2]} 12. Nbd2 {[%clk 0:03:06.2]} 12... Bg4
{[%clk 0:02:52.8]} 13. Ba3 {[%clk 0:03:06.2]} 13... Nbd7 {[%clk 0:02:53.5]} 14.
Nb3 {[%clk 0:03:05.3]} 14... Bxa3 {[%clk 0:02:52]} 15. Rxa3 {[%clk 0:03:05.9]}
15... Rfc8 {[%clk 0:02:50.6]} 16. Rc1 {[%clk 0:03:05.5]} 16... Nc5 {[%clk
0:02:49.1]} 17. Nxc5 {[%clk 0:03:05.6]} 17... Qxc5 {[%clk 0:02:50.5]} 18. Qb2
{[%clk 0:02:58.4]} 18... Rd8 {[%clk 0:02:49.5]} 19. h3 {[%clk 0:02:57.9]} 19...
Bxf3 {[%clk 0:02:47.7]} 20. Rxf3 {[%clk 0:02:51]} 20... Rd6 {[%clk 0:02:43.2]}
21. g4 {[%clk 0:02:47.1]} 21... e4 {[%clk 0:02:43.7]} 22. Rf5 {[%clk 0:02:47.6]}
22... Qb4 {[%clk 0:02:44.1]} 23. Qxb4 {[%clk 0:02:42.1]} 23... axb4 {[%clk
0:02:46]} 24. g5 {[%clk 0:02:41.3]} 24... Nd7 {[%clk 0:02:46.8]} 25. Bxe4 {[%clk
0:02:40.4]} 25... Rxa4 {[%clk 0:02:47]} 26. Bxb7 {[%clk 0:02:39.8]} 26... b3
{[%clk 0:02:48.3]} 27. Be4 {[%clk 0:02:36.2]} 27... b2 {[%clk 0:02:48.8]} 28.
Rb1 {[%clk 0:02:36.3]} 28... Ra1 {[%clk 0:02:49.6]} 29. Kg2 {[%clk 0:02:36.9]}
29... Re6 {[%clk 0:02:50.3]} 30. Rxb2 {[%clk 0:02:21.6]} 30... Rxe4 {[%clk
0:02:50.4]} 31. Rd5 {[%clk 0:02:22.1]} 31... Re7 {[%clk 0:02:44.5]} 32. c5
{[%clk 0:02:21]} 32... h6 {[%clk 0:02:43.8]} 33. gxh6 {[%clk 0:02:16.3]} 33...
gxh6 {[%clk 0:02:41.7]} 34. b6 {[%clk 0:02:17.1]} 34... Rc1 {[%clk 0:02:39.3]}
35. b7 {[%clk 0:02:12]} 35... Kg7 {[%clk 0:02:39.1]} 36. Rxd7 {[%clk 0:02:11.9]}
1-0

[Event "*** Titled Tuesday Blitz"]
[Site "Chess.com"]
[Date "2018.06.05"]
[Round "10"]
[White "Bryakin_Mikhail"]
[Black "lionheart95"]
[Result "1-0"]
[WhiteElo "2647"]
[BlackElo "2388"]
[TimeControl "180+2"]
[EndTime "15:20:16 PDT"]
[Termination "Bryakin_Mikhail won by resignation"]

1. d4 {[%clk 0:03:01.9]} 1... d5 {[%clk 0:00:15.9]} 2. c4 {[%clk 0:03:00.9]}
2... c6 {[%clk 0:00:15.9]} 3. Nf3 {[%clk 0:03:01.8]} 3... Nf6 {[%clk 0:00:16.5]}
4. Nc3 {[%clk 0:03:03]} 4... dxc4 {[%clk 0:00:14.6]} 5. e3 {[%clk 0:03:04]} 5...
Bf5 {[%clk 0:00:11.8]} 6. Bxc4 {[%clk 0:03:03.3]} 6... e6 {[%clk 0:00:13.2]} 7.
Nh4 {[%clk 0:03:02.1]} 7... Bb4 {[%clk 0:00:13.3]} 8. Nxf5 {[%clk 0:03:01.1]}
8... exf5 {[%clk 0:00:15.1]} 9. Bd2 {[%clk 0:03:01.9]} 9... O-O {[%clk
0:00:14.6]} 10. h3 {[%clk 0:03:03.1]} 10... Nbd7 {[%clk 0:00:14.3]} 11. g4
{[%clk 0:03:04.1]} 11... fxg4 {[%clk 0:00:13.7]} 12. hxg4 {[%clk 0:03:06]} 12...
c5 {[%clk 0:00:13.4]} 13. g5 {[%clk 0:03:05.6]} 13... Ne8 {[%clk 0:00:13]} 14.
Qh5 {[%clk 0:03:03.9]} 1-0

[Event "*** Titled Tuesday Blitz"]
[Site "Chess.com"]
[Date "2018.06.05"]
[Round "10"]
[White "VitaliyBernadskiy"]
[Black "Zhuu96"]
[Result "1-0"]
[WhiteElo "2671"]
[BlackElo "2901"]
[TimeControl "180+2"]
[EndTime "15:20:45 PDT"]
[Termination "VitaliyBernadskiy won by resignation"]

1. e4 {[%clk 0:02:58.4]} 1... c5 {[%clk 0:02:59.8]} 2. Nc3 {[%clk 0:02:57.6]}
2... Nc6 {[%clk 0:03:00.1]} 3. Nf3 {[%clk 0:02:57.1]} 3... e5 {[%clk 0:02:59.9]}
4. Bc4 {[%clk 0:02:57.4]} 4... Be7 {[%clk 0:02:59.8]} 5. d3 {[%clk 0:02:58.3]}
5... d6 {[%clk 0:03:00.3]} 6. Nd2 {[%clk 0:02:49.4]} 6... Bg5 {[%clk 0:02:58.6]}
7. h4 {[%clk 0:02:33.1]} 7... Bh6 {[%clk 0:02:57.9]} 8. g4 {[%clk 0:02:33.4]}
8... Bf4 {[%clk 0:02:55.9]} 9. Nd5 {[%clk 0:02:33.9]} 9... h5 {[%clk 0:02:44.1]}
10. Nxf4 {[%clk 0:02:31.7]} 10... exf4 {[%clk 0:02:44.1]} 11. g5 {[%clk
0:02:19.7]} 11... f6 {[%clk 0:02:45]} 12. Bxg8 {[%clk 0:02:16.4]} 12... Rxg8
{[%clk 0:02:40.9]} 13. Qxh5+ {[%clk 0:02:16.9]} 13... Kf8 {[%clk 0:02:41.1]} 14.
Nf3 {[%clk 0:02:15.2]} 14... Nb4 {[%clk 0:02:37.3]} 15. Kd1 {[%clk 0:01:43]}
15... Qd7 {[%clk 0:02:35.9]} 16. Bxf4 {[%clk 0:01:36.8]} 16... d5 {[%clk
0:02:31.4]} 17. gxf6 {[%clk 0:01:29.8]} 17... gxf6 {[%clk 0:02:29.5]} 18. a3
{[%clk 0:01:22]} 18... dxe4 {[%clk 0:02:14.8]} 19. axb4 {[%clk 0:01:15.6]} 19...
Qg4 {[%clk 0:02:03.8]} 20. Bd6+ {[%clk 0:01:11.6]} 20... Kg7 {[%clk 0:02:04.6]}
21. Rg1 {[%clk 0:01:11.3]} 1-0